bitfinex-derivatives/quotes_SOLF0:USTF0_20240912
["timestamp","ask_amount","ask_price","bid_price","bid_amount"]
[1726109428348,11.3,135.97,135.91,11.3]
[1726109428541,11.3,135.96,135.9,11.3]
[1726109429054,1.3999,135.95,135.89,1.3716]
[1726109429247,3.59814695,135.94,135.89,12.6716]
[1726109430839,3.3101,135.93,135.89,12.6716]
[1726109431049,3.3101,135.93,135.89,1.3716]
[1726109431248,3.3105,135.92,135.89,1.3716]
[1726109431549,14.89814695,135.94,135.89,12.6716]
[1726109432745,3.3101,135.93,135.89,12.6716]
[1726109433545,3.59814695,135.94,135.9,11.3]
[1726109434357,3.31,135.93,135.9,11.3]
[1726109439355,3.31,135.93,135.89,12.6716]
[1726109440347,1.3999,135.95,135.78,121.62287157]
[1726109440348,3.3112,135.89,135.84,3.312]
[1726109440549,11.3,135.91,135.85,11.3]
[1726109441050,3.3109,135.9,135.85,14.6118]
[1726109441450,11.3,135.91,135.85,11.3]
[1726109442156,3.3111,135.89,135.85,11.3]
[1726109442762,3.3108,135.9,135.86,11.3]
[1726109443057,11.3,135.91,135.86,11.3]
[1726109444352,15.00251317,135.93,135.86,11.3]
[1726109445253,15.00251317,135.93,135.85,3.3119]
[1726109445453,15.00251317,135.93,135.86,11.3]
[1726109445860,11.3,135.92,135.85,3.3119]
[1726109446163,11.3,135.92,135.86,11.3]
[1726109446457,11.3,135.93,135.87,11.3]
[1726109446663,3.3107,135.9,135.87,11.3]
[1726109448862,2.6332,135.94,135.88,11.3]
[1726109449456,3.3104,135.92,135.88,11.3]
[1726109450163,3.3106,135.91,135.88,11.3]
[1726109451159,3.3103,135.92,135.88,14.6112]
[1726109452162,3.3103,135.92,135.88,11.3]
[1726109452661,3.70977839,135.93,135.86,6.96838156]
[1726109452866,13.9332,135.94,135.86,6.96838156]
[1726109452867,13.9332,135.94,135.87,11.3]
[1726109453266,3.3105,135.91,135.86,3.3116]
[1726109453560,3.3105,135.91,135.88,11.3]
[1726109453965,3.3108,135.9,135.88,11.3]
[1726109462263,3.3102,135.92,135.88,14.6111]
[1726109462567,17.52199917,135.94,135.88,11.3]
[1726109462963,3.3106,135.91,135.88,11.3]
[1726109463359,11.3,135.92,135.85,4.7272]
[1726109463559,11.3,135.91,135.85,4.7272]
[1726109464364,3.3111,135.89,135.85,4.7272]
[1726109466870,3.3112,135.88,135.85,4.7272]
[1726109467273,11.3,135.9,135.84,3.3121]
[1726109467474,3.3113,135.88,135.84,3.3121]
[1726109467775,11.3,135.89,135.84,14.89106428]
[1726109467968,11.3,135.89,135.84,11.3]
[1726109468571,3.3113,135.88,135.84,18.3170034]
[1726109469170,3.3113,135.88,135.84,7.0170034]
[1726109469375,6.22199917,135.94,135.85,11.3]
[1726109469670,6.22199917,135.94,135.79,1.4153]
[1726109469671,11.3,135.92,135.86,11.3]
[1726109470374,11.3,135.91,135.85,14.6119]
[1726109471175,3.3111,135.89,135.85,11.3]
[1726109471770,3.3113,135.88,135.85,11.3]
[1726109473371,3.3113,135.88,135.79,1.4153]
[1726109473372,11.3,135.91,135.83,3.3124]
[1726109473678,11.3,135.91,135.79,1.4153]
[1726109473679,11.3,135.91,135.85,11.3]
[1726109474070,3.3111,135.89,135.85,11.3]
[1726109474267,3.71658221,135.89,135.85,11.3]
[1726109474478,11.3,135.91,135.85,11.3]
[1726109475084,15.02983337,135.91,135.85,11.3]
[1726109475675,3.3115,135.87,135.85,11.3]
[1726109475875,15.02983337,135.91,135.85,11.3]
[1726109476077,2.6332,135.94,135.79,1.4153]
[1726109476376,1.4144,135.9,135.85,11.3]
[1726109477079,3.311,135.89,135.85,11.3]
[1726109478385,3.3114,135.88,135.84,15.00176318]
[1726109478577,3.3114,135.88,135.84,11.3]
[1726109478779,3.3115,135.87,135.82,3.3125]
[1726109478978,3.3115,135.87,135.83,11.3]
[1726109479387,3.3115,135.87,135.83,14.6123]
[1726109479681,3.3115,135.87,135.83,3.3123]
[1726109479882,3.3115,135.87,135.84,14.89511324]
[1726109481584,3.3117,135.86,135.79,1.4153]
[1726109481787,3.3117,135.86,135.82,11.3]
[1726109481995,14.93523481,135.88,135.82,11.3]
[1726109482399,3.3119,135.86,135.82,14.6126]
[1726109482798,14.93523481,135.88,135.82,11.3]
[1726109482998,3.3117,135.86,135.82,11.3]
[1726109484187,3.312,135.85,135.81,11.3]
[1726109484395,11.3,135.87,135.79,1.4153]
[1726109484590,3.312,135.85,135.81,11.3]
[1726109484994,3.312,135.85,135.82,11.3]
[1726109491602,3.3123,135.84,135.81,3.7565208]
[1726109491802,3.3123,135.84,135.82,11.3]
[1726109492003,3.59122505,135.86,135.82,11.3]
[1726109492307,2.7243,135.89,135.83,11.3]
[1726109492507,17.61678154,135.89,135.83,11.3]
[1726109492908,3.3119,135.86,135.83,11.3]
[1726109493408,3.3119,135.86,135.81,3.7565208]
[1726109493610,3.3119,135.86,135.83,11.3]
[1726109493907,17.61678154,135.89,135.83,11.3]
[1726109494108,14.0243,135.89,135.82,11.3]
[1726109494308,17.7522913,135.89,135.82,11.3]
[1726109494806,3.3121,135.85,135.82,11.3]
[1726109496910,2.7243,135.89,135.84,11.3]
[1726109497397,2.7243,135.89,135.79,1.4153]
[1726109497603,3.69936489,135.88,135.84,11.3]
[1726109497803,3.3115,135.87,135.84,11.3]
[1726109498306,2.7243,135.89,135.83,11.3]
[1726109498612,3.3119,135.86,135.83,11.3]
[1726109498812,6.91711444,135.86,135.83,11.3]
[1726109499110,3.3119,135.86,135.83,11.3]
[1726109499503,6.923741,135.86,135.83,11.3]
[1726109499703,3.3119,135.86,135.83,11.3]
[1726109500303,3.312,135.85,135.83,11.3]
[1726109501603,3.3118,135.86,135.83,11.3]
[1726109502908,3.312,135.85,135.82,11.3]
[1726109507001,3.3118,135.86,135.82,11.3]
[1726109507808,3.69430613,135.87,135.82,11.3]
[1726109508411,3.3119,135.86,135.82,11.3]
[1726109509012,3.3121,135.85,135.82,11.3]
[1726109509414,15.06968338,135.88,135.82,11.3]
[1726109509613,3.3119,135.86,135.82,11.3]
[1726109512115,3.312,135.85,135.82,11.3]
[1726109514315,3.312,135.85,135.81,6.99228195]
[1726109514510,3.312,135.85,135.82,11.3]
[1726109523824,3.76968338,135.88,135.79,1.4153]
[1726109524027,11.3,135.86,135.8,15.03433915]
[1726109524222,3.7431752,135.86,135.82,11.3]
[1726109524519,3.3119,135.85,135.82,11.3]
[1726109526623,14.89028128,135.86,135.8,3.73433915]
[1726109526928,11.3,135.85,135.8,11.3]
[1726109527129,11.3,135.86,135.8,14.90648191]
[1726109527329,11.3,135.86,135.8,11.3]
[1726109527824,3.3124,135.84,135.8,15.04492369]
[1726109528227,3.63041467,135.85,135.8,15.04492369]
[1726109528829,3.3125,135.83,135.8,15.04492369]
[1726109530326,11.3,135.85,135.68,37.93713719]
[1726109530634,16.26854948,135.85,135.79,11.3]
[1726109530925,3.3128,135.82,135.79,11.3]
[1726109531127,11.3,135.83,135.75,1.3071]
[1726109531326,11.3,135.83,135.77,11.3]
[1726109531518,3.3133,135.8,135.77,15.02448939]
[1726109532231,11.3,135.83,135.75,1.3071]
[1726109532431,3.6545148,135.82,135.77,11.3]
[1726109532833,11.3,135.83,135.77,11.3]
[1726109533029,12.7155,135.84,135.79,11.3]
[1726109533529,3.60626917,135.83,135.79,11.3]
[1726109534555,3.3127,135.82,135.79,11.3]
[1726109537640,12.7155,135.84,135.75,1.3071]
[1726109537832,16.44163887,135.84,135.77,11.3]
[1726109538337,3.3131,135.81,135.78,11.3]
[1726109538727,3.3132,135.8,135.78,11.3]
[1726109539235,5.14163887,135.84,135.79,11.3]
[1726109540239,5.14163887,135.84,135.77,3.70625042]
[1726109540443,3.3128,135.82,135.78,11.3]
[1726109540630,16.44163887,135.84,135.78,11.3]
[1726109540825,14.90165188,135.83,135.77,15.03240005]
[1726109541040,3.313,135.81,135.77,15.03240005]
[1726109541226,3.313,135.81,135.78,11.3]
[1726109544543,3.3131,135.8,135.77,11.3]
[1726109545034,3.3131,135.8,135.77,14.97310299]
[1726109545634,3.313,135.81,135.77,14.97310299]
[1726109546238,3.313,135.81,135.77,18.28700299]
[1726109546539,3.3132,135.8,135.77,14.97310299]
[1726109547142,3.3132,135.8,135.77,3.67310299]
[1726109547440,3.3132,135.8,135.77,11.3]
[1726109548042,11.3,135.82,135.77,15.05854969]
[1726109548243,11.3,135.83,135.77,15.05854969]
[1726109548536,3.3132,135.8,135.77,15.05854969]
[1726109548950,3.3132,135.8,135.77,11.3]
[1726109549141,3.3132,135.8,135.77,3.76002291]
[1726109549338,3.3132,135.8,135.77,15.06002291]
[1726109550144,3.3132,135.8,135.77,3.76002291]
[1726109550346,3.3132,135.8,135.77,15.06002291]
[1726109551244,11.3,135.82,135.77,3.76002291]
[1726109551434,11.3,135.82,135.76,11.3]
[1726109552147,15.0549583,135.82,135.77,3.68830005]
[1726109552833,3.3134,135.8,135.77,3.68830005]
[1726109554742,3.7549583,135.82,135.77,14.98830005]
[1726109554951,11.3,135.83,135.77,11.3]
[1726109555447,3.67116364,135.82,135.77,14.96711199]
[1726109555643,3.3132,135.8,135.77,14.96711199]
[1726109557046,12.7155,135.84,135.79,11.3]
[1726109557446,3.73599005,135.83,135.79,11.3]
[1726109557647,3.3127,135.82,135.79,11.3]
[1726109560342,3.3129,135.81,135.79,11.3]
[1726109560651,3.3129,135.81,135.77,15.00109415]
[1726109560844,3.3129,135.81,135.77,11.3]
[1726109561351,3.3129,135.81,135.77,14.91564746]
[1726109565748,3.3129,135.81,135.78,11.3]
[1726109567551,1.4155,135.84,135.78,14.6136]
[1726109567552,3.3127,135.82,135.78,14.6136]
[1726109567854,3.3127,135.82,135.78,11.3]
[1726109568056,3.313,135.81,135.78,11.3]
[1726109568356,3.313,135.81,135.77,14.91564746]
[1726109568544,3.313,135.81,135.77,11.3]
[1726109569161,3.313,135.81,135.77,14.94474353]
[1726109569459,3.3132,135.8,135.77,14.94474353]
[1726109578655,3.3132,135.8,135.77,18.25854353]
[1726109582358,4.7277,135.84,135.79,11.3]
[1726109582559,1.4155,135.84,135.8,11.3]
[1726109583062,3.3129,135.82,135.77,3.3138]
[1726109583263,3.3129,135.82,135.8,11.3]
[1726109584262,3.3129,135.82,135.78,3.68351245]
[1726109584468,3.3129,135.82,135.8,11.3]
[1726109586665,3.3129,135.82,135.79,11.3]
[1726109587161,3.3127,135.82,135.78,11.3]
[1726109587762,1.4155,135.84,135.78,11.3]
[1726109588364,3.3129,135.82,135.78,11.3]
[1726109589260,3.3129,135.81,135.78,11.3]
[1726109590954,1.4155,135.84,135.72,5.01739985]
[1726109591159,1.4155,135.84,135.78,11.3]
[1726109591456,3.3131,135.81,135.78,11.3]
[1726109591856,11.3,135.83,135.76,3.3139]
[1726109592062,11.3,135.83,135.77,11.3]
[1726109593856,3.3131,135.81,135.77,11.3]
[1726109594769,11.3,135.83,135.72,5.01739985]
[1726109594770,11.3,135.83,135.75,3.3143]
[1726109594957,11.3,135.83,135.77,11.3]
[1726109595455,3.3131,135.8,135.77,11.3]
[1726109597169,3.313,135.81,135.78,11.3]
[1726109597568,3.313,135.81,135.76,3.3141]
[1726109597876,3.313,135.81,135.77,11.3]
[1726109602062,3.3133,135.8,135.77,11.3]
[1726109606871,3.3133,135.8,135.75,3.3143]
[1726109607073,3.3133,135.8,135.77,11.3]
[1726109612070,3.313,135.81,135.78,11.3]
[1726109612266,1.3779,135.85,135.79,11.3]
[1726109612469,3.3114,135.88,135.84,11.3]
[1726109612672,19.41969803,135.92,135.8,1.3897]
[1726109612673,11.3,135.89,135.8,1.3897]
[1726109612872,3.61748898,135.88,135.83,11.3]
[1726109613581,11.3,135.89,135.83,11.3]
[1726109614175,14.96757842,135.89,135.83,11.3]
[1726109614577,3.3116,135.87,135.83,11.3]
[1726109616277,3.3113,135.88,135.84,11.3]
[1726109617580,4.1801,135.92,135.87,11.3]
[1726109617794,7.86998798,135.92,135.87,11.3]
[1726109618277,24.51556477,135.92,135.87,11.3]
[1726109619168,7.86998798,135.92,135.87,11.3]
[1726109619770,3.3111,135.89,135.87,11.3]
[1726109622672,3.3108,135.9,135.87,11.3]
[1726109622873,7.86998798,135.92,135.87,11.3]
[1726109623072,6.6139,136.06,135.9,11.3]
[1726109623281,11.3,135.96,135.9,11.3]
[1726109623683,11.3,135.95,135.89,11.3]
[1726109623978,11.3,135.92,135.86,11.3]
[1726109624188,13.9413,135.91,135.84,11.3]
[1726109624381,15.3083,135.91,135.84,11.3]
[1726109624575,3.3114,135.88,135.84,11.3]
[1726109627984,3.3114,135.88,135.84,14.6121]
[1726109628189,3.3114,135.88,135.86,11.3]
[1726109629885,3.311,135.89,135.86,11.3]
[1726109630185,2.6413,135.91,135.87,11.3]
[1726109630484,1.29,135.91,135.87,11.3]
[1726109631278,4.6007,135.91,135.88,11.3]
[1726109635585,3.3107,135.91,135.88,11.3]
[1726109636092,3.3102,135.92,135.88,11.3]
[1726109636792,3.3107,135.91,135.88,11.3]
[1726109638588,3.71465739,135.92,135.8,1.3897]
[1726109638794,12.6513,135.91,135.85,11.3]
[1726109638995,16.34672663,135.91,135.85,11.3]
[1726109640195,3.3111,135.89,135.85,11.3]
[1726109640989,3.3113,135.88,135.85,11.3]
[1726109643508,16.34672663,135.91,135.85,11.3]
[1726109643705,11.3,135.9,135.84,11.3]
[1726109643911,12.6223,135.9,135.84,11.3]
[1726109644605,12.6223,135.9,135.8,1.3897]
[1726109644816,11.3,135.87,135.81,11.3]
[1726109645112,1.3866,135.86,135.8,1.3897]
[1726109645299,12.6866,135.86,135.8,11.3]
[1726109645608,14.0542,135.86,135.8,11.3]
[1726109646205,14.0542,135.86,135.79,3.3134]
[1726109646504,2.7542,135.86,135.73,1.318]
[1726109646807,11.3,135.85,135.79,11.3]
[1726109647011,3.3125,135.83,135.8,11.3]
[1726109647200,7.02466515,135.83,135.8,11.3]
[1726109647407,3.3125,135.83,135.8,11.3]
[1726109648005,6.91114665,135.83,135.8,11.3]
[1726109648211,3.3127,135.82,135.8,11.3]
[1726109649907,3.3127,135.82,135.77,3.3138]
[1726109650101,3.3125,135.83,135.8,11.3]
[1726109650705,6.98874434,135.83,135.8,11.3]
[1726109650905,12.6463,135.85,135.77,3.3138]
[1726109651107,12.6463,135.85,135.79,11.3]
[1726109652415,3.3126,135.83,135.79,11.3]
[1726109652615,7.02493289,135.83,135.79,11.3]
[1726109654009,3.3127,135.82,135.79,11.3]
[1726109655810,11.3,135.81,135.73,1.318]
[1726109656018,12.5847,135.81,135.74,11.3]
[1726109656312,1.2847,135.81,135.76,11.3]
[1726109657119,4.97504003,135.85,135.77,11.3]
[1726109657316,11.3,135.83,135.77,11.3]
[1726109658414,3.3134,135.79,135.73,8.29873333]
[1726109658621,11.3,135.79,135.73,1.318]
[1726109658917,11.3,135.79,135.75,11.3]
[1726109658918,3.61544359,135.79,135.75,11.3]
[1726109659216,3.68248493,135.79,135.75,11.3]
[1726109659417,12.6017,135.81,135.75,11.3]
[1726109659919,3.3134,135.8,135.75,11.3]
[1726109660310,16.34533252,135.81,135.75,11.3]
[1726109661810,3.3135,135.79,135.75,11.3]
[1726109662022,102.59018967,135.82,135.78,11.3]
[1726109662322,6.98838857,135.81,135.73,4.98685564]
[1726109662517,6.98838857,135.81,135.77,11.3]
[1726109663312,3.313,135.81,135.77,11.3]
[1726109663513,105.90288967,135.82,135.77,11.3]
[1726109663921,3.62495631,135.81,135.77,11.3]
[1726109664912,6.93785631,135.81,135.77,11.3]
[1726109666922,3.3129,135.81,135.77,11.3]
[1726109667522,3.3134,135.79,135.74,11.3]
[1726109667914,3.3134,135.79,135.75,11.3]
[1726109669217,3.3132,135.8,135.76,11.3]
[1726109669415,3.3132,135.8,135.73,1.318]
[1726109669416,1.366,135.84,135.78,11.3]
[1726109669613,12.666,135.84,135.78,11.3]
[1726109669826,3.3132,135.8,135.78,11.3]
[1726109670128,3.3132,135.8,135.76,11.3]
[1726109670327,3.313,135.81,135.78,11.3]
[1726109671325,3.3126,135.83,135.78,11.3]
[1726109672124,6.98386147,135.83,135.78,14.6136]
[1726109673322,3.3127,135.82,135.78,14.6136]
[1726109675128,3.3127,135.82,135.79,11.3]
[1726109677825,3.3126,135.83,135.79,14.6133]
[1726109680421,3.3126,135.83,135.79,3.3133]
[1726109680617,3.3127,135.82,135.79,11.3]
[1726109682734,3.3125,135.83,135.8,11.3]
[1726109685127,5.0254035,135.84,135.73,4.92906401]
[1726109685128,3.3127,135.82,135.73,4.92906401]
[1726109685327,3.3127,135.82,135.78,11.3]
[1726109685736,3.3127,135.82,135.78,14.6135]
[1726109686430,3.3127,135.82,135.8,11.3]
[1726109691837,3.3125,135.83,135.8,11.3]
[1726109693236,3.3129,135.82,135.77,14.6138]
[1726109693932,3.3129,135.82,135.79,11.3]
[1726109695341,3.3125,135.83,135.79,11.3]
[1726109696440,3.3127,135.82,135.79,11.3]
[1726109697939,11.3,135.83,135.73,4.92906401]
[1726109698129,11.3,135.81,135.75,11.3]
[1726109698331,11.3,135.81,135.74,11.3]
[1726109698530,3.3136,135.79,135.74,11.3]
[1726109698737,11.3,135.81,135.74,14.6144]
[1726109699042,3.3136,135.79,135.74,14.6144]
[1726109699248,11.3,135.81,135.74,14.6144]
[1726109699744,3.3136,135.79,135.74,14.6144]
[1726109700149,11.3,135.81,135.74,14.6144]
[1726109700439,3.3136,135.79,135.74,14.6144]
[1726109701240,3.3136,135.78,135.74,14.6144]
[1726109701638,11.3,135.8,135.74,11.3]
[1726109702840,3.314,135.77,135.73,1.318]
[1726109703046,3.314,135.77,135.74,11.3]
[1726109703843,3.3137,135.78,135.74,11.3]
[1726109704039,14.92013065,135.8,135.75,11.3]
[1726109704244,1.3491,135.83,135.77,11.3]
[1726109704442,1.3491,135.83,135.79,11.3]
[1726109704842,3.3127,135.82,135.79,11.3]
[1726109707556,107.63672858,135.84,135.73,1.318]
[1726109707557,11.3,135.83,135.73,1.318]
[1726109707755,11.3,135.83,135.77,11.3]
[1726109708755,3.3131,135.81,135.77,11.3]
[1726109708944,11.3,135.83,135.77,11.3]
[1726109709349,109.05372858,135.84,135.76,11.3]
[1726109709350,3.3134,135.8,135.76,11.3]
[1726109709555,11.3,135.82,135.76,11.3]
[1726109710251,3.3136,135.79,135.76,11.3]
[1726109710557,11.3,135.82,135.76,11.3]
[1726109711144,11.3,135.8,135.74,14.6146]
[1726109711751,3.3135,135.79,135.74,14.6146]
[1726109714952,3.3135,135.79,135.75,14.6144]
[1726109716654,11.3,135.8,135.73,1.318]
[1726109716655,3.3137,135.78,135.74,14.6144]
[1726109717759,11.3,135.79,135.73,1.318]
[1726109718265,3.3141,135.77,135.73,1.318]
[1726109718460,11.3,135.75,135.61,38.04661058]
[1726109718655,3.315,135.73,135.68,11.3]
[1726109718855,11.3,135.74,135.68,11.3]
[1726109719259,11.3,135.73,135.67,11.3]
[1726109720362,3.3155,135.71,135.67,11.3]
[1726109720555,11.3,135.73,135.67,14.6163]
[1726109720756,11.3,135.73,135.67,11.3]
[1726109721464,3.3154,135.71,135.67,11.3]
[1726109722463,3.3154,135.71,135.66,3.3164]
[1726109722464,3.3154,135.71,135.66,14.6164]
[1726109722767,11.3,135.7,135.64,3.3169]
[1726109722979,11.3,135.7,135.64,14.6169]
[1726109723265,11.3,135.7,135.64,3.3169]
[1726109724867,3.3161,135.68,135.64,3.3169]
[1726109725957,3.3161,135.68,135.55,18.14677832]
[1726109725958,11.3,135.66,135.55,18.14677832]
[1726109726166,11.3,135.66,135.58,11.3]
[1726109726357,11.3,135.65,135.56,1.3755]
[1726109726562,3.3176,135.62,135.58,3.3185]
[1726109728559,3.3179,135.61,135.57,6.93480182]
[1726109728776,3.3179,135.61,135.57,18.23480182]
[1726109729673,11.3,135.62,135.56,1.3755]
[1726109729871,11.3,135.61,135.56,1.3755]
[1726109730473,3.3185,135.59,135.56,1.3755]
[1726109730768,5.0742971,135.67,135.54,11.3]
[1726109730973,11.3,135.6,135.54,11.3]
[1726109731374,3.3195,135.54,135.5,1.3222]
[1726109731570,3.3195,135.54,135.5,12.6222]
[1726109731964,3.3195,135.54,135.5,15.9425]
[1726109732570,3.3193,135.55,135.51,3.3202]
[1726109732869,11.3,135.58,135.51,11.3]
[1726109733469,3.3193,135.56,135.51,14.6201]
[1726109734172,3.3193,135.56,135.51,3.3201]
[1726109734671,3.3193,135.56,135.52,3.32]
[1726109735771,3.3188,135.57,135.53,3.3197]
[1726109736075,19.0766,135.63,135.53,21.3218625]
[1726109736263,19.0766,135.63,135.53,17.72]
[1726109736464,3.3185,135.59,135.55,3.3191]
[1726109736875,3.3181,135.6,135.56,3.3189]
[1726109737084,19.0766,135.63,135.56,3.3189]
[1726109737772,3.3178,135.61,135.57,3.3187]
[1726109739975,17.72,135.63,135.56,1.3054]
[1726109740486,3.318,135.61,135.56,4.6243]
[1726109740673,17.72,135.63,135.56,4.6243]
[1726109741587,3.318,135.61,135.56,4.6243]
[1726109743174,3.318,135.6,135.56,4.6243]
[1726109743377,17.72,135.63,135.56,4.6243]
[1726109744590,17.72,135.59,135.47,1.3608]
[1726109744786,17.72,135.59,135.5,17.72]
[1726109744983,3.3193,135.55,135.5,24.68388277]
[1726109745283,3.3193,135.55,135.5,21.36358277]
[1726109745488,3.3193,135.55,135.5,17.72]
[1726109745792,3.3197,135.54,135.48,3.7545979]
[1726109746282,3.3197,135.54,135.5,3.3203]
[1726109752690,2.7314,135.58,135.49,17.72]
[1726109753492,3.3192,135.56,135.49,21.3795868]
[1726109753997,3.3193,135.55,135.51,3.32]
[1726109754385,2.7314,135.58,135.49,21.3795868]
[1726109754590,3.3192,135.56,135.49,21.3795868]
[1726109755298,3.3192,135.56,135.52,3.3199]
[1726109756496,3.3189,135.57,135.53,3.3197]
[1726109757790,3.3189,135.57,135.51,17.72]
[1726109757986,4.6523,135.58,135.51,17.72]
[1726109758191,4.6523,135.58,135.53,3.3197]
[1726109759189,3.3188,135.57,135.53,3.3197]
[1726109759994,3.76557635,135.56,135.5,3.3203]
[1726109760186,17.72,135.57,135.49,3.6595868]
[1726109760390,3.3195,135.54,135.5,3.3205]
[1726109760591,17.72,135.57,135.5,3.59853309]
[1726109760809,17.72,135.57,135.47,19.0808]
[1726109761400,19.0599,135.57,135.47,22.72102634]
[1726109761892,3.3195,135.54,135.5,3.3205]
[1726109762087,3.3195,135.54,135.47,22.72102634]
[1726109762400,3.3194,135.55,135.47,22.72102634]
[1726109763092,3.3194,135.55,135.51,3.3201]
[1726109763292,1.3337,135.58,135.51,17.72]
[1726109763895,4.6524,135.58,135.54,3.3195]
[1726109766101,3.3182,135.6,135.55,3.68496871]
[1726109766296,3.3182,135.6,135.53,17.72]
[1726109766498,1.3027,135.61,135.53,17.72]
[1726109766796,2.7623,135.62,135.58,3.3183]
[1726109766797,1.4224,135.62,135.58,3.3183]
[1726109767189,1.4224,135.62,135.57,3.73625001]
[1726109767392,1.4224,135.62,135.52,1.287]
[1726109767590,1.4224,135.62,135.53,17.72]
[1726109767899,4.74,135.62,135.58,3.3184]
[1726109768091,1.4224,135.62,135.57,3.7310869]
[1726109768293,1.4224,135.62,135.59,3.3182]
[1726109771206,1.4224,135.62,135.57,3.75173935]
[1726109771409,1.4224,135.62,135.55,17.72]
[1726109771997,3.3178,135.61,135.57,3.3186]
[1726109772396,3.3178,135.61,135.55,21.46003083]
[1726109772605,1.4224,135.62,135.55,21.46003083]
[1726109773102,4.74,135.62,135.58,3.3184]
[1726109774800,3.3178,135.61,135.57,3.3187]
[1726109775997,3.3182,135.6,135.56,3.3189]
[1726109777010,3.3183,135.59,135.55,7.05923083]
[1726109777213,3.3183,135.59,135.55,3.3192]
[1726109777511,3.3186,135.58,135.46,227.0]
[1726109777704,3.3186,135.58,135.51,17.72]
[1726109778707,21.4215834,135.6,135.47,1.4083]
[1726109778907,21.4215834,135.6,135.48,17.72]
[1726109778908,1.3862,135.59,135.48,17.72]
[1726109779112,5.14162729,135.59,135.48,17.72]
[1726109779299,17.72,135.52,135.45,3.76206558]
[1726109779609,21.39097351,135.52,135.42,19.1283]
[1726109779812,2.7325,135.51,135.42,19.1283]
[1726109780007,2.7325,135.51,135.42,22.81876751]
[1726109780607,4.1287,135.51,135.42,22.81876751]
[1726109781306,1.3983,135.51,135.44,17.72]
[1726109784909,1.3983,135.51,135.47,3.321]
[1726109786408,1.3983,135.51,135.44,17.72]
[1726109786911,1.3983,135.51,135.47,3.3211]
[1726109787912,4.7186,135.51,135.47,3.3211]
[1726109788109,1.3983,135.51,135.44,17.72]
[1726109788822,1.3983,135.51,135.48,3.3208]
[1726109789515,1.3983,135.51,135.42,22.81876751]
[1726109790113,5.0601736,135.51,135.42,22.81876751]
[1726109790318,19.1183,135.51,135.42,5.09876751]
[1726109790710,19.1183,135.51,135.45,3.3216]
[1726109792428,1.3983,135.51,135.42,22.81876751]
[1726109794128,1.3983,135.51,135.46,3.3213]
[1726109794315,1.3983,135.51,135.42,22.81876751]
[1726109794717,1.3983,135.51,135.47,3.3211]
[1726109794921,1.3983,135.51,135.42,22.81876751]
[1726109795520,1.3983,135.51,135.46,3.3214]
[1726109797824,3.7251862,135.59,135.44,17.72]
[1726109798026,17.72,135.55,135.44,17.72]
[1726109798325,21.35556375,135.55,135.44,17.72]
[1726109798823,17.72,135.55,135.48,3.3208]
[1726109799232,21.37781387,135.55,135.48,3.3208]